bitfinex/quotes_BTCUSD_20240820
["timestamp","ask_amount","ask_price","bid_price","bid_amount"]
[1724135433842,0.00827,61151.0,61150.0,3.48217456]
[1724135434043,0.00827,61151.0,61150.0,3.48931104]
[1724135434385,0.00827,61151.0,61150.0,4.99331104]
[1724135435153,0.00827,61151.0,61150.0,4.99531104]
[1724135435350,0.00827,61151.0,61150.0,5.00931104]
[1724135435573,0.00827,61151.0,61150.0,5.00977609]
[1724135435773,0.00827,61151.0,61150.0,5.01804609]
[1724135437526,0.00827,61151.0,61150.0,5.02204609]
[1724135437727,0.00827,61151.0,61150.0,5.02959016]
[1724135438046,0.00827,61151.0,61150.0,3.47240764]
[1724135438246,0.00827,61151.0,61150.0,3.3990229]
[1724135438446,0.00827,61151.0,61150.0,3.49685985]
[1724135439439,0.00827,61151.0,61150.0,4.99685985]
[1724135440142,0.00827,61151.0,61150.0,5.07215985]
[1724135441090,0.00827,61151.0,61150.0,5.0394229]
[1724135441260,0.00827,61151.0,61150.0,5.15772016]
[1724135441467,0.000827,61154.0,61150.0,5.15772016]
[1724135441468,0.000827,61154.0,61152.0,2.193944]
[1724135441778,0.000827,61154.0,61152.0,3.43127035]
[1724135441995,0.000827,61154.0,61152.0,3.36347352]
[1724135442203,0.000827,61154.0,61152.0,3.30037352]
[1724135442412,0.000827,61154.0,61152.0,3.39917778]
[1724135442615,0.000827,61154.0,61152.0,3.42562658]
[1724135442826,0.000827,61154.0,61152.0,4.92562658]
[1724135443074,0.000827,61154.0,61152.0,4.80137352]
[1724135443307,0.000827,61154.0,61152.0,4.90117896]
[1724135443509,0.000827,61154.0,61152.0,4.80337352]
[1724135443735,0.000827,61154.0,61152.0,4.91517152]
[1724135444406,0.000827,61154.0,61152.0,4.88872536]
[1724135444618,0.000827,61154.0,61152.0,4.4134234]
[1724135444819,0.000827,61154.0,61152.0,4.53725577]
[1724135445028,0.000827,61154.0,61152.0,4.53825577]
[1724135445238,0.000827,61154.0,61152.0,4.4114234]
[1724135445451,0.000827,61154.0,61152.0,4.53830375]
[1724135445677,0.000827,61154.0,61152.0,4.54028122]
[1724135445885,0.000827,61154.0,61152.0,4.49192938]
[1724135446086,0.000827,61154.0,61152.0,4.58972738]
[1724135446503,0.000827,61154.0,61152.0,4.48692938]
[1724135446714,0.000827,61154.0,61152.0,4.56527605]
[1724135446948,0.000827,61154.0,61152.0,4.49192938]
[1724135447585,0.000827,61154.0,61152.0,4.66972738]
[1724135447755,0.000827,61154.0,61152.0,4.73102738]
[1724135448320,0.000827,61154.0,61152.0,5.05408038]
[1724135448521,0.000827,61154.0,61152.0,5.17268038]
[1724135448721,0.000827,61154.0,61152.0,4.84562738]
[1724135449151,0.000827,61154.0,61152.0,5.17096338]
[1724135450136,0.000827,61154.0,61152.0,5.16696338]
[1724135450263,0.000827,61154.0,61152.0,5.17096338]
[1724135450463,0.000827,61154.0,61152.0,5.05236338]
[1724135450698,0.000827,61154.0,61152.0,5.05636338]
[1724135450899,0.000827,61154.0,61152.0,4.95458343]
[1724135451426,0.000827,61154.0,61152.0,5.08080836]
[1724135453298,0.000827,61154.0,61152.0,4.95858343]
[1724135453668,0.0002,61159.0,61152.0,4.95858343]
[1724135453669,0.0002,61159.0,61158.0,0.574931]
[1724135453899,0.0002,61159.0,61158.0,2.26083768]
[1724135454073,0.0002,61159.0,61158.0,3.00841047]
[1724135454247,0.0002,61159.0,61158.0,4.71329394]
[1724135454675,0.0002,61159.0,61158.0,4.81498663]
[1724135454975,0.0002,61159.0,61158.0,4.82698663]
[1724135455328,0.0002,61159.0,61158.0,4.81498663]
[1724135455546,0.0002,61159.0,61158.0,4.81098663]
[1724135455751,0.0002,61159.0,61158.0,4.81498663]
[1724135455998,0.0002,61159.0,61158.0,5.04431494]
[1724135456172,0.0002,61159.0,61158.0,5.05431494]
[1724135456371,0.0002,61159.0,61158.0,5.15197878]
[1724135456646,0.0002,61159.0,61158.0,5.16574389]
[1724135456852,0.0002,61159.0,61158.0,5.16174389]
[1724135457517,0.0002,61159.0,61158.0,5.16274389]
[1724135457728,0.0002,61159.0,61158.0,5.06908005]
[1724135457950,0.0002,61159.0,61158.0,5.16673744]
[1724135458368,0.0002,61159.0,61158.0,5.06508005]
[1724135458566,0.0002,61159.0,61158.0,5.06908005]
[1724135459098,1e-06,61159.0,61158.0,5.06908005]
[1724135461033,1e-06,61159.0,61158.0,5.06508005]
[1724135461229,1e-06,61162.0,61161.0,0.168502]
[1724135461431,1e-06,61162.0,61161.0,3.40659765]
[1724135461626,1e-06,61162.0,61161.0,3.44196606]
[1724135461841,1e-06,61162.0,61161.0,5.0611939]
[1724135462065,1e-06,61162.0,61161.0,4.94196606]
[1724135462507,1e-06,61162.0,61161.0,4.94596606]
[1724135462707,1e-06,61162.0,61161.0,4.95669645]
[1724135462910,1e-06,61162.0,61161.0,4.88346274]
[1724135463129,1e-06,61162.0,61161.0,4.80576274]
[1724135463308,1e-06,61162.0,61161.0,4.85461764]
[1724135463572,1e-06,61162.0,61161.0,4.74166274]
[1724135464114,1e-06,61162.0,61161.0,4.73966274]
[1724135465190,1e-06,61162.0,61161.0,4.80386274]
[1724135465386,1e-06,61162.0,61161.0,4.85273889]
[1724135465807,1e-06,61162.0,61161.0,4.87817413]
[1724135466011,1e-06,61162.0,61161.0,4.99847449]
[1724135466235,1e-06,61162.0,61161.0,4.80586274]
[1724135466452,1e-06,61162.0,61161.0,4.92546424]
[1724135466667,1e-06,61162.0,61161.0,4.99880124]
[1724135466870,1e-06,61162.0,61161.0,4.92546424]
[1724135467437,1e-06,61162.0,61161.0,5.02321276]
[1724135467840,1e-06,61162.0,61161.0,4.92546424]
[1724135468046,1e-06,61162.0,61161.0,5.10411276]
[1724135468859,1e-06,61162.0,61161.0,5.02125814]
[1724135469034,1e-06,61162.0,61161.0,3.23966274]
[1724135469242,1e-06,61162.0,61161.0,3.28856887]
[1724135469738,1e-06,61162.0,61161.0,4.78856887]
[1724135470118,0.079301,61162.0,61161.0,2.61155887]
[1724135470327,0.079301,61162.0,61161.0,2.56265274]
[1724135470968,1e-06,61162.0,61161.0,2.61157431]
[1724135471171,1e-06,61162.0,61161.0,2.63603509]
[1724135471371,1e-06,61162.0,61161.0,2.75674578]
[1724135471854,1e-06,61162.0,61161.0,3.24525078]
[1724135472049,1e-06,61162.0,61161.0,3.17186843]
[1724135472455,1e-06,61162.0,61161.0,4.90877235]
[1724135473514,1e-06,61162.0,61161.0,4.78646843]
[1724135473879,1e-06,61162.0,61161.0,4.90880703]
[1724135474288,1e-06,61162.0,61161.0,4.78646843]
[1724135476218,1e-06,61162.0,61161.0,4.78546843]
[1724135476451,1e-06,61162.0,61161.0,4.90887005]
[1724135476682,1e-06,61162.0,61161.0,4.70846843]
[1724135476898,1e-06,61162.0,61161.0,4.77037348]
[1724135477070,1e-06,61162.0,61161.0,2.68336343]
[1724135477071,0.149001,61162.0,61161.0,2.68336343]
[1724135477286,0.149001,61162.0,61161.0,2.75681795]
[1724135477617,0.149001,61162.0,61161.0,2.75681992]
[1724135477995,0.149001,61162.0,61161.0,2.87141992]
[1724135477996,1e-06,61162.0,61161.0,2.87141992]
[1724135478181,1e-06,61162.0,61161.0,2.86286343]
[1724135478567,1e-06,61162.0,61161.0,3.21286843]
[1724135478768,1e-06,61162.0,61161.0,3.21357569]
[1724135478944,1e-06,61162.0,61161.0,4.71357569]
[1724135479519,1e-06,61162.0,61161.0,4.71320508]
[1724135480679,1e-06,61162.0,61161.0,4.71020508]
[1724135480928,1e-06,61162.0,61161.0,4.71320508]
[1724135482040,1e-06,61162.0,61161.0,3.21320508]
[1724135483364,1e-06,61162.0,61161.0,3.24027729]
[1724135483563,1e-06,61162.0,61161.0,3.21320508]
[1724135483979,1e-06,61162.0,61161.0,3.20328522]
[1724135484395,1e-06,61162.0,61161.0,3.15238522]
[1724135484604,1e-06,61162.0,61161.0,3.26080109]
[1724135484736,1e-06,61162.0,61161.0,3.13838522]
[1724135484941,1e-06,61162.0,61161.0,3.27480109]
[1724135485143,0.080901,61162.0,61161.0,2.8332166]
[1724135485352,0.080901,61162.0,61161.0,2.89484943]
[1724135485551,0.080901,61162.0,61161.0,2.92333369]
[1724135485762,0.080901,61162.0,61161.0,2.68778022]
[1724135486191,0.080901,61162.0,61161.0,2.68378022]
[1724135486426,0.080901,61162.0,61161.0,2.76125493]
[1724135486626,0.080901,61162.0,61161.0,2.56665274]
[1724135486855,0.080901,61162.0,61161.0,2.61563806]
[1724135487033,0.080901,61162.0,61161.0,2.64012745]
[1724135487239,1e-06,61162.0,61161.0,2.80753572]
[1724135487438,1e-06,61162.0,61161.0,2.90548919]
[1724135488046,1e-06,61162.0,61161.0,2.80753572]
[1724135488355,1e-06,61162.0,61161.0,2.68125274]
[1724135488556,1e-06,61162.0,61161.0,2.80675271]
[1724135488758,1e-06,61162.0,61161.0,2.88023335]
[1724135489231,1e-06,61162.0,61161.0,2.80675271]
[1724135489433,1e-06,61162.0,61161.0,2.90563559]
[1724135489647,1e-06,61162.0,61161.0,2.80766241]
[1724135489848,1e-06,61162.0,61161.0,2.90163559]
[1724135490256,1e-06,61162.0,61161.0,2.90564131]
[1724135490466,1e-06,61162.0,61161.0,2.90564919]
[1724135490680,1e-06,61162.0,61161.0,2.89164919]
[1724135490898,1e-06,61162.0,61161.0,2.90564919]
[1724135491107,1e-06,61162.0,61161.0,2.80766241]
[1724135491315,1e-06,61162.0,61161.0,3.12066741]
[1724135491532,1e-06,61162.0,61161.0,2.92615479]
[1724135491785,1e-06,61162.0,61161.0,3.06905479]
[1724135492038,1e-06,61162.0,61161.0,3.074056]
[1724135492315,1e-06,61162.0,61161.0,2.931156]
[1724135492958,1e-06,61162.0,61161.0,3.13488793]
[1724135493144,1e-06,61162.0,61161.0,3.15788793]
[1724135493381,1e-06,61162.0,61161.0,3.23618793]
[1724135494467,1e-06,61162.0,61161.0,2.81580652]
[1724135494682,1e-06,61162.0,61161.0,2.81581146]
[1724135494895,1e-06,61162.0,61161.0,2.69328293]
[1724135495109,1e-06,61162.0,61161.0,3.64632146]
[1724135495321,1e-06,61162.0,61161.0,3.65516629]
[1724135495741,0.145,61177.0,61161.0,3.65516629]
[1724135495742,0.0786,61177.0,61176.0,1.471162]
[1724135495961,0.0786,61177.0,61176.0,2.14433939]
[1724135496194,0.0786,61177.0,61176.0,2.20198302]
[1724135496576,0.0786,61177.0,61176.0,2.15298902]
[1724135497207,0.0786,61177.0,61176.0,2.34541604]
[1724135497437,0.0786,61177.0,61176.0,1.46504503]
[1724135497639,0.0786,61177.0,61176.0,1.79197003]
[1724135497840,0.0786,61177.0,61176.0,1.74298902]
[1724135498364,0.0786,61177.0,61176.0,1.75698902]
[1724135498774,0.1397,61177.0,61176.0,2.47298902]
[1724135498975,0.0002,61179.0,61178.0,1.472113]
[1724135499177,0.0002,61179.0,61178.0,2.4214352]
[1724135499386,0.0002,61179.0,61178.0,2.88147308]
[1724135499589,0.0002,61179.0,61178.0,2.87847308]
[1724135500001,0.0002,61179.0,61178.0,2.90296276]
[1724135500176,0.0002,61179.0,61178.0,1.85900037]
[1724135500379,0.1428,61179.0,61178.0,1.74291783]
[1724135500901,0.1428,61179.0,61178.0,1.75691783]
[1724135501246,0.1428,61179.0,61178.0,1.74491783]
[1724135501436,0.2574,61179.0,61178.0,1.15482644]
[1724135501638,0.2574,61179.0,61178.0,1.16882644]
[1724135501850,0.2574,61179.0,61178.0,1.16682644]
[1724135501851,0.1428,61179.0,61178.0,1.16682644]
[1724135502052,0.1428,61179.0,61178.0,2.16291783]
[1724135502436,0.1428,61179.0,61178.0,1.65691783]
[1724135502894,0.1428,61179.0,61178.0,1.33100383]
[1724135503811,0.1428,61179.0,61178.0,1.31700383]
[1724135504213,0.1428,61179.0,61178.0,1.31600383]
[1724135504825,0.1428,61179.0,61178.0,0.01862744]
[1724135505029,0.898472,61179.0,61168.0,0.326965]
[1724135505245,0.898472,61179.0,61161.0,0.0009097]
[1724135505246,0.0796,61170.0,61161.0,0.0009097]
[1724135505447,0.0797,61169.0,61168.0,0.163484]
[1724135505736,0.0797,61169.0,61168.0,0.490452]
[1724135505939,0.0797,61169.0,61168.0,0.81742]
[1724135506672,0.0771,61169.0,61168.0,1.60756539]
[1724135507080,0.0771,61169.0,61168.0,1.30756539]
[1724135507911,0.0771,61169.0,61168.0,0.81742]
[1724135508389,0.1473,61169.0,61168.0,0.82242]
[1724135508611,0.1473,61169.0,61168.0,0.83115836]
[1724135509245,0.1473,61169.0,61168.0,0.99433575]
[1724135509640,0.1473,61169.0,61168.0,1.32130375]
[1724135510700,0.1473,61169.0,61168.0,0.99433575]
[1724135510953,0.1473,61169.0,61168.0,1.32130375]
[1724135511826,0.1473,61169.0,61168.0,0.99433575]
[1724135511973,0.1473,61169.0,61168.0,1.32130375]
[1724135512186,0.1473,61169.0,61168.0,0.83115836]
[1724135513045,0.0881,61169.0,61168.0,1.15812636]
[1724135513404,0.0881,61169.0,61168.0,1.15903496]
[1724135515800,0.011,61169.0,61168.0,1.32221235]
[1724135516503,0.011,61169.0,61168.0,2.64208035]
[1724135516716,0.011,61169.0,61168.0,2.74208035]
[1724135517436,0.011,61169.0,61168.0,2.74508035]
[1724135517639,0.0791,61178.0,61177.0,1.14422]
[1724135518055,0.0791,61178.0,61177.0,1.15285853]
[1724135518899,0.0901,61178.0,61177.0,1.15385853]
[1724135519112,0.011,61178.0,61177.0,1.78575592]
[1724135520062,0.011,61178.0,61177.0,1.64395592]
[1724135520296,0.011,61178.0,61177.0,1.64795592]
[1724135520499,0.0002,61179.0,61178.0,1.144199]
[1724135520671,0.0002,61179.0,61178.0,1.30737639]
[1724135521760,0.0102,61179.0,61178.0,1.31700383]
[1724135522319,0.0002,61179.0,61178.0,1.31600383]
[1724135522523,0.0002,61179.0,61178.0,1.64391783]
[1724135522524,0.0092,61179.0,61178.0,1.64391783]
[1724135523177,0.0092,61179.0,61178.0,1.65091783]
[1724135523605,0.0092,61179.0,61178.0,1.64391783]
[1724135523806,0.0092,61179.0,61178.0,1.79211783]
[1724135524217,0.0092,61179.0,61178.0,1.78411783]
[1724135524432,0.0092,61179.0,61178.0,1.78311783]
[1724135524631,0.0002,61179.0,61178.0,2.62411783]
[1724135524865,0.0082,61179.0,61178.0,1.79511783]
[1724135525493,0.0002,61179.0,61178.0,1.79411783]
[1724135525825,0.0052,61179.0,61178.0,1.79411783]
[1724135526227,0.006026,61179.0,61178.0,1.79411783]
[1724135526602,0.006026,61179.0,61178.0,1.71621783]
[1724135526846,0.006026,61179.0,61178.0,1.65391783]
[1724135526847,0.081926,61179.0,61178.0,1.65391783]
[1724135527262,0.006026,61179.0,61178.0,1.65391783]
[1724135528422,0.006026,61179.0,61178.0,1.73461783]
[1724135529463,0.006026,61179.0,61178.0,2.54111783]
[1724135529671,0.006026,61179.0,61178.0,1.80011783]
[1724135532634,0.006026,61179.0,61178.0,2.63011783]
[1724135533618,0.006026,61179.0,61178.0,2.63111783]
[1724135533780,0.006026,61179.0,61178.0,1.80011783]
[1724135534400,0.006026,61179.0,61178.0,2.63011783]
[1724135534598,0.006026,61179.0,61178.0,2.65311783]
[1724135535300,0.006026,61179.0,61178.0,2.65611783]
[1724135535503,0.006026,61179.0,61178.0,2.65311783]
[1724135539208,0.006026,61179.0,61178.0,2.63011783]
[1724135539660,0.006026,61179.0,61178.0,2.54941783]
[1724135540564,0.006026,61179.0,61178.0,2.48391783]
[1724135542669,0.006026,61179.0,61178.0,2.56651783]
[1724135542855,0.006026,61179.0,61178.0,2.56551783]
[1724135543483,0.006026,61179.0,61178.0,2.62711783]
[1724135543824,0.006026,61179.0,61178.0,3.07603183]
[1724135544027,0.006026,61179.0,61178.0,3.07703183]
[1724135544738,0.006026,61179.0,61178.0,3.07603183]
[1724135546734,0.006026,61179.0,61178.0,3.07703183]
[1724135547030,0.006026,61179.0,61178.0,3.07603183]
[1724135551039,0.006026,61179.0,61178.0,3.07703183]
[1724135551242,0.006026,61179.0,61178.0,3.07603183]
[1724135552127,0.006026,61179.0,61178.0,3.07694043]
[1724135553828,0.006026,61179.0,61178.0,2.58482643]
[1724135557794,0.006026,61179.0,61178.0,2.48482643]
[1724135564057,0.006026,61179.0,61178.0,2.53378457]
[1724135568293,0.006026,61179.0,61178.0,2.48482643]
[1724135569537,0.006026,61179.0,61178.0,2.70538186]
[1724135570162,0.00582927,61179.0,61178.0,2.70538186]
[1724135571036,0.00582927,61179.0,61178.0,3.03229586]
[1724135571321,0.00582927,61179.0,61178.0,3.20067957]
[1724135571526,0.00582927,61179.0,61178.0,4.82307493]
[1724135572308,0.00582927,61179.0,61178.0,3.32307493]
[1724135573168,0.00582927,61179.0,61178.0,3.19946531]
[1724135576853,0.00582927,61179.0,61178.0,3.19646531]
[1724135577353,0.00582927,61179.0,61178.0,3.19946531]
[1724135579131,0.00582927,61179.0,61178.0,3.52537931]
[1724135579339,0.00582927,61179.0,61178.0,3.52837931]
[1724135579549,0.00582927,61179.0,61178.0,3.67532029]
[1724135579771,0.00582927,61179.0,61178.0,5.17532029]
[1724135579948,0.00082927,61179.0,61178.0,5.36868988]
[1724135580353,2.7e-07,61179.0,61178.0,5.36868988]
[1724135580953,2.7e-07,61179.0,61178.0,5.35768988]
[1724135581579,2.7e-07,61179.0,61178.0,6.05368988]
[1724135581896,0.00300027,61179.0,61178.0,6.06468988]
[1724135582103,2.7e-07,61179.0,61178.0,6.0323489]
[1724135582340,2.7e-07,61179.0,61178.0,6.0363489]
[1724135582544,0.00827,61191.0,61190.0,1.941075]
[1724135582747,0.00827,61191.0,61190.0,3.04885239]
[1724135582904,0.00827,61191.0,61190.0,3.05734676]
[1724135583771,0.00827,61191.0,61190.0,2.97734676]
[1724135584178,0.00827,61191.0,61190.0,2.98734676]
[1724135585847,0.01227,61191.0,61190.0,2.98734676]
[1724135586998,0.01227,61191.0,61190.0,2.99728205]
[1724135589127,0.01227,61191.0,61190.0,2.98734676]
[1724135589353,0.15427,61191.0,61190.0,1.65249676]
[1724135590004,0.15027,61191.0,61190.0,1.65249676]
[1724135590207,0.15027,61191.0,61190.0,0.01849437]
[1724135590408,0.20426548,61191.0,61190.0,0.00849437]
[1724135590615,0.1358,61189.0,61185.0,0.326877]
[1724135590798,0.1358,61189.0,61186.0,0.163436]
[1724135590799,0.2504,61187.0,61186.0,0.163436]
[1724135592072,0.2504,61187.0,61186.0,0.490308]
[1724135592894,0.1358,61187.0,61186.0,0.490308]
[1724135593136,0.1468,61187.0,61186.0,0.495308]
[1724135594300,0.1468,61187.0,61186.0,0.50384672]
[1724135594704,0.1468,61187.0,61186.0,0.83071872]
[1724135595372,0.2614,61187.0,61186.0,0.50384672]
[1724135595659,0.2614,61187.0,61186.0,0.83071872]
[1724135595896,0.2614,61187.0,61186.0,0.50284672]
[1724135596146,0.2614,61187.0,61186.0,0.82971872]
[1724135596373,0.2614,61187.0,61186.0,0.50284672]
[1724135596855,0.2614,61187.0,61186.0,0.82971872]
[1724135598333,0.2614,61187.0,61186.0,0.50284672]
[1724135598810,0.2614,61187.0,61186.0,0.82971872]
[1724135599638,0.2614,61187.0,61186.0,0.50284672]
[1724135599862,0.262227,61187.0,61186.0,0.50284672]
[1724135600084,0.262227,61187.0,61186.0,0.82971872]
[1724135600306,0.262227,61187.0,61186.0,0.50284672]
[1724135601123,0.262227,61187.0,61186.0,0.01353872]
[1724135603327,0.262227,61187.0,61186.0,0.17697472]
[1724135603525,0.262227,61187.0,61186.0,0.01353872]
[1724135605385,0.42566,61187.0,61186.0,0.01353872]
[1724135605913,0.262227,61187.0,61186.0,0.01353872]
[1724135607010,0.42566,61187.0,61186.0,0.01353872]
[1724135607318,0.752526,61187.0,61186.0,0.01353872]
[1724135607773,0.752526,61187.0,61186.0,0.005]
[1724135608537,1.179392,61187.0,61186.0,0.005]
[1724135609342,1.22831679,61187.0,61186.0,0.005]
[1724135609918,1.179392,61187.0,61186.0,0.005]
[1724135610345,1.22830981,61187.0,61186.0,0.005]
[1724135611177,1.179392,61187.0,61186.0,0.005]
[1724135611967,1.179392,61187.0,61186.0,0.0059097]
[1724135613881,0.852526,61187.0,61186.0,0.0059097]
[1724135616734,0.52566,61187.0,61186.0,0.0059097]
[1724135617366,0.52566,61187.0,61186.0,0.01469611]
[1724135617575,0.852526,61187.0,61186.0,0.0059097]
[1724135618014,0.011827,61187.0,61186.0,0.0059097]
[1724135618225,0.011827,61187.0,61186.0,0.8866897]
[1724135618226,0.126427,61187.0,61186.0,0.8866897]
[1724135618639,0.126427,61187.0,61186.0,0.89547611]
[1724135621225,0.126427,61187.0,61186.0,0.50500411]
[1724135622119,0.126427,61187.0,61186.0,0.17813211]
[1724135624316,0.011827,61187.0,61186.0,2.2167255]
[1724135624520,0.011827,61187.0,61186.0,1.4667255]
[1724135625336,0.011827,61187.0,61186.0,1.30354811]
[1724135628663,0.011827,61187.0,61186.0,0.83187611]
[1724135630329,0.011827,61187.0,61186.0,0.50500411]
[1724135631574,0.011827,61187.0,61186.0,0.17813211]
[1724135633033,0.011827,61187.0,61186.0,0.01469611]
[1724135633233,0.06073684,61187.0,61186.0,0.17813211]
[1724135633668,0.011827,61187.0,61186.0,0.01469611]
[1724135635229,0.06073684,61187.0,61186.0,0.01469611]
[1724135635441,0.18519176,61187.0,61186.0,0.01469611]
[1724135635654,1.33218907,61187.0,61186.0,0.01469611]
[1724135635855,1.33218907,61187.0,61186.0,0.0059097]
[1724135635856,2.06822008,61187.0,61186.0,0.0059097]
[1724135636039,2.07289265,61187.0,61186.0,0.0059097]
[1724135636232,2.24662145,61187.0,61186.0,0.0059097]
[1724135636482,2.37482526,61187.0,61186.0,0.0059097]
[1724135637077,2.38140049,61187.0,61186.0,0.0059097]
[1724135637477,2.38040049,61187.0,61186.0,0.0059097]
[1724135637729,2.38439977,61187.0,61186.0,0.00458]
[1724135638376,2.38140049,61187.0,61186.0,0.00458]
[1724135638585,2.66810049,61187.0,61186.0,0.00458]
[1724135638787,2.67109977,61187.0,61186.0,0.00458]
[1724135639001,2.66810049,61187.0,61186.0,0.00458]
[1724135639163,2.67109977,61187.0,61186.0,0.00458]
[1724135639373,2.61717454,61187.0,61186.0,0.00458]
[1724135639965,2.61917382,61187.0,61186.0,0.00458]
[1724135640168,2.56528542,61187.0,61186.0,0.00458]
[1724135640372,2.5682847,61187.0,61186.0,0.00458]
[1724135640569,2.5672847,61187.0,61186.0,0.00458]
[1724135640799,2.56528542,61187.0,61186.0,0.00458]
[1724135641392,2.71212476,61187.0,61186.0,0.00458]
[1724135641790,2.87825884,61187.0,61186.0,0.00458]
[1724135642159,2.87825884,61187.0,61178.0,0.0009086]
[1724135642160,1.456681,61179.0,61178.0,0.0009086]
[1724135642332,2.1885921,61179.0,61178.0,0.0009086]
[1724135642569,2.30931353,61179.0,61178.0,0.0009086]
[1724135643403,2.18896408,61179.0,61178.0,0.0009086]
[1724135644336,2.31127799,61179.0,61178.0,0.0129086]
[1724135644540,2.18896408,61179.0,61178.0,0.0129086]
[1724135644719,2.29457057,61179.0,61178.0,0.0129086]
[1724135644927,2.29457057,61179.0,61177.0,0.0009086]
[1724135644928,0.00499928,61178.0,61177.0,0.0009086]
[1724135645129,0.00499928,61178.0,61168.0,0.0009086]
[1724135645130,0.961207,61169.0,61168.0,0.0009086]
[1724135645341,1.48245564,61169.0,61168.0,0.0009086]
[1724135645570,1.58245503,61169.0,61168.0,0.0009086]
[1724135645780,1.50908439,61169.0,61168.0,0.0009086]
[1724135645974,1.58245581,61169.0,61168.0,0.0009086]
[1724135646183,1.50908439,61169.0,61168.0,0.0009086]
[1724135646389,1.67321919,61169.0,61168.0,0.0149086]
[1724135646838,1.51008439,61169.0,61168.0,0.0149086]
[1724135647046,1.58443165,61169.0,61168.0,0.0239086]
[1724135647242,1.51108439,61169.0,61168.0,0.0239086]
[1724135648582,1.55995437,61169.0,61168.0,0.0239086]
[1724135648794,1.67421919,61169.0,61168.0,0.0239086]
[1724135649444,1.84651919,61169.0,61168.0,0.0239086]
[1724135649653,1.51955619,61169.0,61168.0,0.0239086]
[1724135649857,1.52055619,61169.0,61168.0,0.0239086]
[1724135650060,1.84751919,61169.0,61168.0,0.0239086]
[1724135650268,1.84651919,61169.0,61168.0,0.0239086]
[1724135650473,1.84751919,61169.0,61168.0,0.0239086]
[1724135653548,1.84651919,61169.0,61168.0,0.0239086]
[1724135658511,1.67451919,61169.0,61168.0,0.0239086]
[1724135660117,1.61531919,61169.0,61168.0,0.0239086]
[1724135661942,1.67651919,61169.0,61168.0,0.0239086]
[1724135662142,1.69751919,61169.0,61168.0,0.0239086]
[1724135662373,1.69951919,61169.0,61168.0,0.0239086]
[1724135662575,1.69751919,61169.0,61168.0,0.0239086]
[1724135662777,1.69951919,61169.0,61168.0,0.0239086]
[1724135662949,1.69932248,61169.0,61168.0,0.0239086]
[1724135663148,1.69732248,61169.0,61168.0,0.0239086]
[1724135664886,1.70132176,61169.0,61168.0,0.0239086]
[1724135665083,1.69732248,61169.0,61168.0,0.0239086]
[1724135665893,1.53418768,61169.0,61168.0,0.0239086]
[1724135670177,1.60933348,61169.0,61168.0,0.0239086]
[1724135672284,1.61133348,61169.0,61168.0,0.0239086]
[1724135672494,1.60933348,61169.0,61168.0,0.0239086]
[1724135674463,1.55013348,61169.0,61168.0,0.0239086]
[1724135674708,1.71326828,61169.0,61168.0,0.0239086]
[1724135676095,1.76207022,61169.0,61168.0,0.0239086]
[1724135677087,2.08903322,61169.0,61168.0,0.0239086]
[1724135677311,2.11543419,61169.0,61168.0,0.0239086]
[1724135678187,2.04223128,61169.0,61168.0,0.0239086]
[1724135678357,2.04023128,61169.0,61168.0,0.0239086]
[1724135679123,2.23534982,61169.0,61168.0,0.0239086]
[1724135679715,1.46853348,61169.0,61168.0,0.0239086]
[1724135679865,2.10883691,61169.0,61168.0,0.0239086]
[1724135680042,2.10683691,61169.0,61168.0,0.0239086]
[1724135680245,2.1312629,61169.0,61168.0,0.0239086]
[1724135680714,2.00898815,61169.0,61168.0,0.0239086]
[1724135680898,2.17212295,61169.0,61168.0,0.0239086]
[1724135681103,2.27101533,61169.0,61168.0,0.0239086]
[1724135681325,2.2953977,61169.0,61168.0,0.0239086]
[1724135682080,2.17212295,61169.0,61168.0,0.0239086]
[1724135683355,2.17294995,61169.0,61168.0,0.0239086]
[1724135683794,2.27960799,61169.0,61168.0,0.0239086]
[1724135683953,2.15712762,61169.0,61168.0,0.0239086]
[1724135684696,2.15812762,61169.0,61168.0,0.0239086]
[1724135685491,2.15712762,61169.0,61168.0,0.0239086]
[1724135686828,2.15812762,61169.0,61168.0,0.0239086]
[1724135687035,2.15712762,61169.0,61168.0,0.0239086]
[1724135687251,2.15812762,61169.0,61168.0,0.0239086]
[1724135687450,2.09792762,61169.0,61168.0,0.0239086]
[1724135688171,2.08872039,61169.0,61168.0,0.0239086]
[1724135690950,2.08972039,61169.0,61168.0,0.0239086]
[1724135692305,2.08872039,61169.0,61168.0,0.0239086]
[1724135693682,2.08972039,61169.0,61168.0,0.0239086]
[1724135694291,2.08872039,61169.0,61168.0,0.0239086]
[1724135694831,2.08972039,61169.0,61168.0,0.0239086]
[1724135695702,2.08872039,61169.0,61168.0,0.0239086]
[1724135701149,2.05847049,61169.0,61168.0,0.0239086]
[1724135703819,2.20666817,61169.0,61168.0,0.0239086]
[1724135704018,2.20566817,61169.0,61168.0,0.0239086]
[1724135704222,2.18755596,61169.0,61168.0,0.0239086]
[1724135704445,2.20567137,61169.0,61168.0,0.0239086]
[1724135704651,2.5821,61169.0,61168.0,0.0239086]
[1724135704850,1.18830257,61162.0,61161.0,0.0009097]
[1724135705057,1.85362576,61162.0,61161.0,0.0009097]
[1724135705302,1.90968283,61162.0,61161.0,0.0009097]
[1724135705591,1.93268283,61162.0,61161.0,0.0009097]
[1724135706084,1.92868355,61162.0,61161.0,0.0009097]
[1724135706400,2.09381835,61162.0,61161.0,0.0009097]
[1724135706802,2.09581763,61162.0,61161.0,0.0009097]
[1724135707342,2.09181835,61162.0,61161.0,0.0009097]
[1724135707767,2.18888436,61162.0,61161.0,0.0009097]
[1724135708104,2.19288364,61162.0,61161.0,0.0009097]
[1724135708307,2.04576056,61162.0,61161.0,0.0009097]
[1724135708508,2.18888436,61162.0,61161.0,0.0009097]
[1724135708764,2.23481583,61162.0,61161.0,0.0009097]
[1724135708964,2.41691509,61162.0,61161.0,0.0009097]
[1724135709160,1.31965929,61159.0,61158.0,0.0009097]
[1724135709380,1.77268248,61159.0,61158.0,0.0009097]
[1724135709691,1.79568248,61159.0,61158.0,0.0009097]
[1724135710071,1.79368248,61159.0,61158.0,0.0009097]
[1724135710524,1.79568248,61159.0,61158.0,0.0009097]
[1724135711136,1.85537209,61159.0,61158.0,0.0009097]
[1724135711552,1.86503387,61159.0,61158.0,0.0009097]
[1724135714146,1.86703387,61159.0,61158.0,0.0009097]
[1724135714363,2.19604915,61159.0,61158.0,0.0009097]
[1724135716336,1.31778829,61152.0,61151.0,0.0009097]